fUST/lending_fUST_20240305
["ID","MTS","AMOUNT","RATE_DAILY","PERIOD"]
[316661652,1709577038819,-194.28413233,0.000239,2]
[316661653,1709577038826,-2911.78987179,0.000239,2]
[316661654,1709577038833,-1000.0,0.00023901,2]
[316661655,1709577038841,-1000.0,0.00023903,2]
[316661656,1709577038848,-21110.49376913,0.00023906,2]
[316661657,1709577038857,-1205.0,0.00023934,2]
[316661658,1709577038867,-8238.30978747,0.0002398,2]
[316661659,1709577038877,-14093.36394742,0.0002398,2]
[316661660,1709577038886,-243.17267796,0.00023997,2]
[316661661,1709577038896,-422.52364018,0.00023997,2]
[316661662,1709577038905,-225.0,0.00023997,2]
[316661663,1709577038914,-365.15051778,0.00023997,2]
[316661664,1709577038924,-500.0,0.00023997,2]
[316661665,1709577038933,-642.82798706,0.00023997,2]
[316661666,1709577038942,-500.0,0.00023997,2]
[316661667,1709577038950,-342.82623691,0.00023997,2]
[316661668,1709577038965,-152.37704506,0.00023997,2]
[316661669,1709577038975,-927.10128616,0.00023998,2]
[316661670,1709577038984,-2594.58,0.00023998,2]
[316661671,1709577038994,-5500.96513703,0.00023998,2]
[316661672,1709577039003,-707.47509022,0.00023998,2]
[316661673,1709577039012,-155.16143926,0.00023998,2]
[316661674,1709577039021,-257.07252683,0.00023998,2]
[316661675,1709577039031,-155.31028768,0.00023998,2]
[316661676,1709577039041,-400.0,0.00023998,2]
[316661677,1709577039050,-219.95258249,0.00023998,2]
[316661678,1709577039060,-184.6090898,0.00023998,2]
[316661679,1709577039070,-309.79863785,0.00023998,2]
[316661680,1709577039079,-176.28320101,0.00023998,2]
[316661681,1709577039089,-274.25907601,0.00023998,6]
[316661682,1709577039098,-538.62697067,0.00023998,2]
[316661683,1709577039108,-309.79863785,0.00023998,2]
[316661684,1709577039117,-3141.40913344,0.00023998,2]
[316661685,1709577039126,-325.78468577,0.00023998,2]
[316661686,1709577039136,-745.08532418,0.00023998,2]
[316661687,1709577039145,-535.78782311,0.00023998,2]
[316661688,1709577039154,-155.79833176,0.00023998,2]
[316661689,1709577039163,-1305.47768504,0.00023998,2]
[316661690,1709577039176,-167.29112073,0.00023998,2]
[316661691,1709577039188,-1067.12847857,0.00023998,2]
[316661692,1709577039197,-557.80133072,0.00023998,2]
[316661693,1709577039210,-309.76768121,0.00023998,2]
[316661694,1709577039220,-246.04615513,0.00023998,7]
[316661695,1709577039229,-258.31712702,0.00023998,2]
[316661696,1709577039239,-155.44109372,0.00023998,2]
[316661697,1709577039249,-309.86056352,0.00023998,2]
[316661698,1709577039258,-428.7992585,0.00023998,2]
[316661699,1709577039269,-194.01268024,0.00023998,2]
[316661700,1709577039278,-280.37379297,0.00023998,2]
[316661701,1709577039288,-211.25737708,0.00023998,2]
[316661702,1709577039298,-263.10081276,0.00023998,2]
[316661703,1709577039307,-882.68690269,0.00023998,2]
[316661704,1709577039317,-295.027726,0.00023998,2]
[316661705,1709577039326,-332.42304546,0.00023998,2]
[316661706,1709577039341,-284.16078155,0.00023998,2]
[316661707,1709577039351,-291.16093897,0.00023998,2]
[316661708,1709577039360,-777.52597527,0.00023998,2]
[316661709,1709577039372,-316.24664396,0.00023998,2]
[316661710,1709577039382,-154.93802479,0.00023998,2]
[316661711,1709577039392,-1074.45581519,0.00023998,2]
[316661712,1709577039403,-13928.62612054,0.00023998,2]
[316661713,1709577039413,-2181.61293813,0.00023998,2]
[316661714,1709577039423,-1020.8534454,0.00023998,2]
[316661715,1709577039433,-154.92253873,0.00023998,2]
[316661716,1709577039442,-640.59606474,0.00023999,2]
[316661717,1709577039453,-350.0,0.00023999,2]
[316661718,1709577039467,-500.0,0.00023999,2]
[316661719,1709577039476,-500.0,0.00023999,2]
[316661720,1709577039485,-500.0,0.00023999,2]
[316661721,1709577039495,-500.0,0.00023999,2]
[316661722,1709577039504,-500.0,0.00023999,2]
[316661723,1709577039513,-500.0,0.00023999,2]
[316661724,1709577039523,-500.0,0.00023999,2]
[316661725,1709577039532,-500.0,0.00023999,2]
[316661726,1709577039542,-500.0,0.00023999,2]
[316661727,1709577039551,-500.0,0.00023999,2]
[316661728,1709577039560,-650.0,0.00023999,2]
[316661729,1709577039569,-500.0,0.00023999,2]
[316661730,1709577039579,-305.59675677,0.00023999,2]
[316661731,1709577039588,-500.0,0.00023999,2]
[316661732,1709577039598,-500.0,0.00023999,2]
[316661733,1709577039607,-500.0,0.00023999,2]
[316661734,1709577039619,-500.0,0.00023999,2]
[316661735,1709577039628,-641.73018479,0.00023999,2]
[316661736,1709577039637,-344.80541911,0.00023999,2]
[316661737,1709577039647,-151.0,0.00023999,2]
[316661738,1709577039659,-151.0,0.00023999,2]
[316661739,1709577039669,-264.4576008,0.00024,3]
[316661740,1709577039679,-1385112.0419092,0.00024,6]
[316661742,1709577040407,-22395.0583554,0.00024,6]
[316661743,1709577040417,-208.77342431,0.00024,2]
[316661744,1709577040427,-184.08617855,0.00024,2]
[316661745,1709577040436,-60357.73626699,0.00024,6]
[316661746,1709577040448,-2856.00851406,0.00024,6]
[316661747,1709577040501,-23690.90692483,0.00024,6]
[316661760,1709577041613,-154.92253873,0.00023998,2]
[316661761,1709577041623,-154.92253873,0.00023998,2]
[316661762,1709577041633,-4114.05905696,0.00024,6]
[316661763,1709577041644,-28828.6212874,0.00024,6]
[316661764,1709577041660,-210354.75038445,0.00024,6]
[316661765,1709577041672,-21239.92799417,0.00024,6]
[316661766,1709577041684,-66666.00000003,0.00024,6]
[316661883,1709577043620,-993.949998,0.00024,6]
[316661885,1709577043632,-2084.18629732,0.00024,6]
[316661888,1709577043648,-132800.0,0.00024,6]
[316661890,1709577043662,-23046.05658434,0.00024,6]
[316661892,1709577043674,-9661.38410745,0.00024,6]
[316662236,1709577046664,-298.258156,0.00023999,2]
[316662254,1709577046747,-333.0,0.00023999,2]
[316665017,1709577868892,1781.160212,0.00018927,2]
[316665041,1709577954357,152.08101338,0.00018832,2]
[316665047,1709578006977,5282.96261267,0.00018832,2]
[316665048,1709578007652,17580.75791995,0.00018927,2]
[316665049,1709578007688,7319.24208005,0.00018927,2]
[316665050,1709578023975,5282.96261267,0.00018832,2]
[316665051,1709578036105,-154.9690062,0.0001915,2]
[316665052,1709578036135,-1472.85786267,0.0001915,2]
[316665053,1709578036175,-184.6152405,0.00019178,2]
[316665054,1709578036202,-11268.28272312,0.00019999,2]
[316665057,1709578047992,5282.96261267,0.00018832,2]
[316665058,1709578050151,-703.4462778,0.00019149,2]
[316665059,1709578050172,-2456.63534939,0.00019999,2]
[316665060,1709578050193,-8478.04527498,0.0002,2]
[316665061,1709578050214,-781.65092481,0.00021899,2]
[316665062,1709578050235,-351.68713339,0.000219,2]
[316665063,1709578050255,-5258.933089,0.00022,2]
[316665064,1709578050277,-152.75103057,0.00022792,2]
[316665065,1709578050298,-194.2248931,0.00022792,3]
[316665066,1709578050319,-176.02556296,0.00022792,3]
[316665067,1709578050342,-500.0,0.00022998,2]
[316665068,1709578050364,-2298.43427768,0.0002309,5]
[316665069,1709578050385,-459.15903213,0.0002309,4]
[316665070,1709578050406,-5000.0,0.000231,5]
[316665071,1709578050428,-2960.58219489,0.00023101,5]
[316665072,1709578050448,-5000.0,0.00023101,5]
[316665073,1709578050470,-8757.33971969,0.00023105,5]
[316665074,1709578050490,-771.48,0.00023796,3]
[316665075,1709578050510,-1000.0,0.00023797,2]
[316665076,1709578050531,-21353.76105614,0.00023806,2]
[316665077,1709578050550,-1000.0,0.00023899,2]
[316665078,1709578050572,-182.23064821,0.000239,2]
[316665079,1709578050591,-2620.61088462,0.000239,2]
[316665080,1709578050611,-1000.0,0.00023938,2]
[316665081,1709578050632,-6900.48746496,0.0002398,2]
[316665082,1709578050651,-238.68390986,0.00023998,2]
[316665083,1709578050671,-10891.83346041,0.00023998,2]
[316665084,1709578050691,-317.26763001,0.00023998,2]
[316665085,1709578050711,-154.8915759,0.00023998,2]
[316665086,1709578050731,-8242.41634189,0.00023998,2]
[316665087,1709578050750,-1079.67786944,0.00023998,2]
[316665088,1709578050778,-214.42576736,0.00023998,2]
[316665089,1709578050805,-321.40419734,0.00023998,2]
[316665090,1709578050827,-883.48769579,0.00023998,2]
[316665091,1709578050849,-279.37738581,0.00023998,2]
[316665092,1709578050870,-154.9690062,0.00023998,2]
[316665093,1709578050891,-1271.8167343,0.00023999,2]
[316665094,1709578050912,-154.92253873,0.00023999,2]
[316665095,1709578050933,-154.92253873,0.00023999,2]
[316665096,1709578050955,-198.05828952,0.00023999,2]
[316665097,1709578051102,-697.26958026,0.00023999,2]
[316665098,1709578051123,-181.51262164,0.00023999,2]
[316665099,1709578051144,-5456.03867828,0.00023999,2]
[316665100,1709578051164,-154.92253873,0.00023999,2]
[316665101,1709578051185,-154.2,0.00023999,2]
[316665102,1709578051206,-154.2,0.00023999,2]
[316665103,1709578051227,-154.2,0.00023999,2]
[316665104,1709578051247,-154.21,0.00023999,2]
[316665105,1709578051269,-154.21,0.00023999,2]
[316665106,1709578051290,-154.21,0.00023999,2]
[316665107,1709578051309,-154.21,0.00023999,2]
[316665108,1709578051332,-33479.96448208,0.00024,6]
[316665109,1709578068484,2403.19028639,0.00018832,2]
[316665171,1709578232682,-151.61197063,0.0002,2]
[316665173,1709578232692,-1707.45679818,0.00021898,2]
[316665181,1709578232753,-779.36999409,0.00021898,2]
[316665428,1709578238771,-612.00887366,0.00019999,2]
[316665430,1709578238780,-154.9690062,0.00021897,2]
[316665432,1709578238790,-5991.21848271,0.00021898,2]
[316665434,1709578238800,-703.4462778,0.00021898,2]
[316665436,1709578238809,-234.45808893,0.000219,2]
[316665438,1709578238818,-5000.0,0.00023085,5]
[316665440,1709578238827,-161.1460224,0.000239,2]
[316665441,1709578238836,-1530.53376913,0.00023998,2]
[316665443,1709578238848,-131.6202336,0.00023998,2]
[316665444,1709578238858,-154.9690062,0.00023998,2]
[316665445,1709578238867,-69877.44027375,0.00024,6]
[316665489,1709578239355,-5991.28353761,0.00024,6]
[316665503,1709578239489,-464.07540966,0.00024,6]
[316665569,1709578241840,-1472.85786267,0.00021897,2]
[316665570,1709578241850,-781.65092481,0.00021897,2]
[316665571,1709578241859,-64772.51833544,0.00024,6]
[316665572,1709578241912,-11668.91847668,0.00024,6]
[316665573,1709578241923,-3251.62269426,0.00024,6]
[316665597,1709578245941,-569.5986381,0.00024,6]
[316665598,1709578245953,-1269.79885406,0.00024,6]
[316665609,1709578246809,-3325.64326611,0.00024,6]
[316665637,1709579357243,703.4462778,0.00019008,2]
[316665640,1709579365931,703.4462778,0.00019008,2]
[316665643,1709579390916,307.98842491,0.000189,2]
[316665705,1709579431910,-703.4462778,0.00019592,2]
[316665707,1709579431920,-703.4462778,0.00019593,2]
[316665709,1709579431930,-154.9690062,0.00019792,2]
[316665711,1709579431939,-1270.38666448,0.0002,2]
[316665713,1709579431950,-2725.61793544,0.0002,2]
[316665715,1709579431960,-8478.04527498,0.0002,2]
[316665716,1709579431969,-781.65092481,0.00020911,2]
[316665717,1709579431979,-24900.0,0.00020913,2]
[316665719,1709579431989,-161.1460224,0.00021799,2]
[316665722,1709579431998,-1472.85786267,0.00021899,2]
[316665724,1709579432008,-723.0,0.00022,2]
[316665726,1709579432017,-723.0,0.00022192,2]
[316665728,1709579432026,-723.0,0.00022466,2]
[316665730,1709579432036,-723.0,0.0002274,2]
[316665732,1709579432045,-5087.20322407,0.00022795,3]
[316665734,1709579432054,-402.24980613,0.00022796,3]
[316665736,1709579432063,-723.0,0.00023014,2]
[316665738,1709579432072,-723.0,0.00023014,2]
[316665740,1709579432081,-50000.0,0.00023087,5]
[316665742,1709579432090,-70729.14805055,0.00023087,5]
[316665744,1709579432099,-5000.0,0.00023088,5]
[316665746,1709579432108,-18509.92714981,0.00023088,5]
[316665747,1709579432117,-5000.0,0.00023088,5]
[316665748,1709579432126,-2627.2019159,0.00023089,5]
[316665749,1709579432136,-723.0,0.00023288,2]
[316665750,1709579432145,-3499.78525409,0.000239,2]
[316665751,1709579432155,-674.14846243,0.000239,2]
[316665752,1709579432166,-1684.40133371,0.000239,2]
[316665753,1709579432177,-307.98842491,0.000239,2]
[316665754,1709579432187,-3007.61024138,0.00023911,2]
[316665782,1709579437901,-5125.86973207,0.00019906,2]
[316665792,1709579437986,-19774.13026793,0.00019906,2]
[316665794,1709579437995,-5448.26132147,0.00023911,2]
[316665796,1709579438004,-723.0,0.00023934,2]
[316665798,1709579438013,-8238.30978747,0.0002398,2]
[316665800,1709579438023,-510.00739472,0.00023998,2]
[316665801,1709579438032,-229.08317915,0.00023998,2]
[316665803,1709579438041,-264.4576008,0.00024,3]
[316665805,1709579438050,-648786.39285798,0.00024,6]
[316665807,1709579438059,-3360.19813707,0.00024,2]
[316665810,1709579438069,-208.77342431,0.00024,2]
[316665812,1709579438078,-184.08617855,0.00024,2]
[316665814,1709579438088,-155.51762666,0.00024,2]
[316665816,1709579438097,-4646.28214522,0.00024,2]
[316665818,1709579438107,-20223.68542825,0.00024,4]
[316665820,1709579438116,-2000.0,0.00024,2]
[316665821,1709579438126,-166.044309,0.00024,2]
[316665823,1709579438135,-508998.32996089,0.00024,6]
[316665825,1709579438145,-5273.93025112,0.00024,2]
[316665826,1709579438154,-10000.0,0.00024,2]
[316665827,1709579438164,-10000.0,0.00024,2]
[316665828,1709579438174,-10000.0,0.00024,2]
[316665829,1709579438183,-16714.96127507,0.00024,2]
[316665830,1709579438193,-1586.71325062,0.00024,2]
[316665831,1709579438202,-2000.0,0.0002401,2]
[316665832,1709579438214,-2358.5497961,0.00024012,2]
[316665833,1709579438223,-2000.0,0.0002402,2]
[316665834,1709579438233,-2000.0,0.0002403,2]
[316665835,1709579438242,-2000.0,0.0002404,2]
[316665836,1709579438251,-2000.0,0.0002405,2]
[316665837,1709579438260,-2000.0,0.0002406,2]
[316665838,1709579438270,-2000.0,0.0002407,2]
[316665839,1709579438279,-2000.0,0.0002408,2]
[316665840,1709579438290,-2000.0,0.0002409,2]
[316665841,1709579438299,-2000.0,0.000241,2]
[316665842,1709579438309,-581.0,0.000241,2]
[316665843,1709579438411,-2000.0,0.0002411,2]
[316665844,1709579438421,-2000.0,0.0002412,2]
[316665845,1709579438430,-2358.5497961,0.00024123,2]
[316665846,1709579438440,-2000.0,0.0002413,2]
[316665847,1709579438450,-2000.0,0.0002414,2]
[316665848,1709579438462,-2000.0,0.0002415,2]
[316665849,1709579438473,-2000.0,0.0002416,2]
[316665850,1709579438483,-735.0,0.00024164,2]
[316665851,1709579438493,-2000.0,0.0002417,2]
[316665852,1709579438503,-2000.0,0.0002418,2]
[316665853,1709579438512,-2000.0,0.0002419,2]
[316665854,1709579438522,-2000.0,0.000242,2]
[316665855,1709579438531,-2000.0,0.0002421,2]
[316665856,1709579438541,-2000.0,0.0002422,2]
[316665857,1709579438551,-1000.0,0.00024226,2]
[316665858,1709579438560,-2000.0,0.0002423,2]
[316665859,1709579438570,-2358.5497961,0.00024235,2]
[316665860,1709579438580,-2000.0,0.0002424,2]
[316665861,1709579438589,-2000.0,0.0002425,2]
[316665862,1709579438598,-3949.999448,0.0002426,2]
[316665864,1709579438607,-500.0,0.00024345,2]
[316665866,1709579438617,-500.0,0.00024345,2]
[316665867,1709579438627,-500.0,0.00024345,2]
[316665868,1709579438637,-500.0,0.00024345,2]
[316665869,1709579438646,-500.0,0.00024345,2]
[316665870,1709579438655,-500.0,0.00024345,2]
[316665871,1709579438665,-545.9097713,0.00024345,2]
[316665872,1709579438676,-301.11917514,0.00024345,2]
[316665873,1709579438686,-500.0,0.00024345,2]
[316665874,1709579438695,-500.0,0.00024345,2]
[316665875,1709579438704,-500.0,0.00024345,2]
[316665876,1709579438716,-500.0,0.00024345,2]
[316665877,1709579438727,-500.0,0.00024345,2]
[316665878,1709579438736,-500.0,0.00024345,2]
[316665879,1709579438745,-500.0,0.00024345,2]
[316665880,1709579438754,-500.0,0.00024345,2]
[316665881,1709579438763,-500.0,0.00024345,2]
[316665882,1709579438772,-500.0,0.00024345,2]
[316665883,1709579438781,-500.0,0.00024345,2]
[316665884,1709579438791,-158.24822718,0.00024345,2]
[316665885,1709579438800,-500.0,0.00024345,2]
[316665886,1709579438809,-500.0,0.00024345,2]
[316665887,1709579438818,-500.0,0.00024345,2]
[316665888,1709579438828,-500.0,0.00024345,2]
[316665889,1709579438837,-548.64349554,0.00024345,2]
[316665891,1709579438846,-500.0,0.00024345,2]
[316665892,1709579438855,-2358.5497961,0.00024346,2]
[316665894,1709579438865,-205.628,0.00024353,2]
[316665896,1709579438874,-1000.0,0.00024454,2]
[316665898,1709579438883,-2358.5497961,0.00024458,2]
[316665900,1709579438892,-183.0587897,0.00024517,2]
[316665901,1709579438902,-2358.5497961,0.00024569,2]
[316665903,1709579438912,-276.02890553,0.00024655,2]
[316665904,1709579438922,-160.02841284,0.00024655,2]
[316665905,1709579438931,-154.98450155,0.00024655,2]
[316665906,1709579438941,-155.07133281,0.00024657,2]
[316665907,1709579438950,-191.79338628,0.00024657,2]
[316665908,1709579438962,-500.0,0.00024657,2]
[316665909,1709579438971,-487.34557282,0.00024657,2]
[316665910,1709579438981,-500.0,0.00024657,2]
[316665911,1709579438990,-553.21874373,0.00024657,2]
[316665912,1709579438999,-623.99588001,0.00024657,2]
[316665913,1709579439009,-500.0,0.00024657,2]
[316665914,1709579439019,-500.0,0.00024657,2]
[316665915,1709579439028,-500.0,0.00024657,2]
[316665916,1709579439038,-500.0,0.00024657,2]
[316665917,1709579439047,-500.0,0.00024657,2]
[316665918,1709579439056,-359.93993941,0.00024657,2]
[316665919,1709579439066,-500.24805751,0.00024657,2]
[316665920,1709579439075,-501.88421879,0.00024657,2]
[316665921,1709579439084,-500.0,0.00024657,2]
[316665922,1709579439094,-500.0,0.00024657,2]
[316665923,1709579439103,-500.0,0.00024657,2]
[316665924,1709579439113,-500.0,0.00024657,2]
[316665925,1709579439122,-500.0,0.00024657,2]
[316665926,1709579439131,-350.65371892,0.00024657,2]
[316665927,1709579439142,-500.0,0.00024657,2]
[316665928,1709579439151,-500.0,0.00024657,2]
[316665929,1709579439160,-236.69454493,0.00024657,2]
[316665930,1709579439170,-500.0,0.00024657,2]
[316665931,1709579439179,-500.0,0.00024657,2]
[316665932,1709579439188,-500.0,0.00024657,2]
[316665933,1709579439199,-500.0,0.00024657,2]
[316665934,1709579439208,-500.0,0.00024657,2]
[316665935,1709579439218,-500.0,0.00024657,2]
[316665936,1709579439227,-500.0,0.00024657,2]
[316665937,1709579439236,-500.0,0.00024657,2]
[316665938,1709579439245,-500.0,0.00024657,2]
[316665939,1709579439255,-500.0,0.00024657,2]
[316665940,1709579439264,-500.0,0.00024657,2]
[316665941,1709579439273,-500.0,0.00024657,2]
[316665942,1709579439283,-500.0,0.00024657,2]
[316665943,1709579439292,-500.0,0.00024657,2]
[316665944,1709579439301,-500.0,0.00024657,2]
[316665945,1709579439310,-238.54184346,0.00024657,2]
[316665946,1709579439320,-500.88570508,0.00024657,2]
[316665947,1709579439329,-155.67077662,0.00024657,2]
[316665948,1709579439339,-500.0,0.00024657,2]
[316665949,1709579439348,-500.0,0.00024657,2]
[316665950,1709579439359,-500.0,0.00024657,2]
[316665951,1709579439369,-500.0,0.00024657,2]
[316665952,1709579439379,-500.0,0.00024657,2]
[316665953,1709579439389,-500.0,0.00024657,2]
[316665954,1709579439400,-420.57054458,0.00024657,2]
[316665955,1709579439410,-409.32,0.00024657,2]
[316665956,1709579439420,-151.0,0.00024657,2]
[316665957,1709579439429,-151.0,0.00024657,2]
[316665958,1709579439439,-151.0,0.00024657,2]
[316665959,1709579439448,-151.0,0.00024657,2]
[316665960,1709579439458,-151.0,0.00024657,2]
[316665961,1709579439468,-500.0,0.00024657,2]
[316665962,1709579439479,-342.55334539,0.00024657,2]
[316665963,1709579439501,-157.44665461,0.00024657,2]
[316665964,1709579439511,-500.0,0.00024657,2]
[316665965,1709579439521,-500.0,0.00024657,2]
[316665966,1709579439531,-500.0,0.00024657,2]
[316665967,1709579439541,-151.0,0.00024657,2]
[316665968,1709579439550,-500.0,0.00024657,2]
[316665969,1709579439560,-151.0,0.00024657,2]
[316665970,1709579439570,-151.0,0.00024657,2]
[316665971,1709579439579,-500.0,0.00024657,2]
[316665972,1709579439589,-151.0,0.00024657,2]
[316665973,1709579439598,-500.0,0.00024657,2]
[316665974,1709579439607,-151.0,0.00024657,2]
[316665975,1709579439617,-500.0,0.00024657,2]
[316665976,1709579439626,-500.0,0.00024657,2]
[316665977,1709579439636,-568.64137998,0.00024657,2]
[316665978,1709579439646,-316.74107782,0.00024657,2]
[316665988,1709579441084,-2889.6611666,0.00019707,2]
[316665989,1709579441094,-184.97171567,0.00024657,2]
[316665990,1709579441103,-500.0,0.00024657,2]
[316665991,1709579441113,-500.0,0.00024657,2]
[316665992,1709579441122,-500.0,0.00024657,2]
[316665993,1709579441131,-500.0,0.00024657,2]
[316665994,1709579441140,-500.0,0.00024657,2]
[316665995,1709579441150,-500.0,0.00024657,2]
[316665996,1709579441159,-500.0,0.00024657,2]
[316665997,1709579441168,-500.0,0.00024657,2]
[316665998,1709579441177,-500.0,0.00024657,2]
[316665999,1709579441186,-530.8993804,0.00024657,2]
[316666000,1709579441196,-500.0,0.00024657,2]
[316666001,1709579441206,-277.430992,0.00024657,2]
[316666002,1709579441217,-500.0,0.00024657,2]
[316666003,1709579441226,-502.79546737,0.00024657,2]
[316666004,1709579441236,-500.0,0.00024657,2]
[316666005,1709579441246,-302.34858135,0.00024657,2]
[316666006,1709579441255,-369.24942755,0.00024657,2]
[316666007,1709579441265,-500.0,0.00024657,2]
[316666008,1709579441274,-500.0,0.00024657,2]
[316666009,1709579441283,-500.0,0.00024657,2]
[316666010,1709579441293,-503.6428911,0.00024657,2]
[316666011,1709579441377,-500.0,0.00024657,2]
[316666012,1709579441388,-500.0,0.00024657,2]
[316666013,1709579441398,-500.0,0.00024657,2]
[316666014,1709579441410,-500.0,0.00024657,2]
[316666015,1709579441420,-500.0,0.00024657,2]
[316666016,1709579441429,-311.25723657,0.00024657,2]
[316666017,1709579441439,-500.0,0.00024657,2]
[316666018,1709579441451,-500.0,0.00024657,2]
[316666019,1709579441463,-500.0,0.00024657,2]
[316666020,1709579441472,-502.92093641,0.00024657,2]
[316666021,1709579441481,-500.0,0.00024657,2]
[316666022,1709579441491,-500.0,0.00024657,2]
[316666023,1709579441500,-500.0,0.00024657,2]
[316666024,1709579441510,-500.0,0.00024657,2]
[316666025,1709579441520,-500.0,0.00024657,2]
[316666026,1709579441530,-500.0,0.00024657,2]
[316666027,1709579441540,-500.0,0.00024657,2]
[316666028,1709579441550,-502.78798814,0.00024657,2]
[316666029,1709579441560,-515.1396964,0.00024657,2]
[316666030,1709579441569,-500.0,0.00024657,2]
[316666031,1709579441578,-500.0,0.00024657,2]
[316666032,1709579441587,-500.0,0.00024657,2]
[316666033,1709579441595,-500.0,0.00024657,2]
[316666034,1709579441605,-500.0,0.00024657,2]
[316666035,1709579441614,-500.0,0.00024657,2]
[316666036,1709579441623,-500.0,0.00024657,2]
[316666037,1709579441632,-445.53130576,0.00024657,2]
[316666074,1709579444762,-2145.05565995,0.00024656,2]
[316666075,1709579444774,-1197.04866436,0.00024656,2]
[316666076,1709579444785,-1457.3620517,0.00024656,2]
[316666077,1709579444851,-302.00997705,0.00024656,2]
[316666118,1709579446032,-3376.56892192,0.00024656,2]
[316666119,1709579446041,-54.46869424,0.00024657,2]
[316666120,1709579446050,-500.0,0.00024657,2]
[316666121,1709579446060,-500.0,0.00024657,2]
[316666122,1709579446070,-500.0,0.00024657,2]
[316666123,1709579446079,-376.65281132,0.00024657,2]
[316666124,1709579446089,-500.0,0.00024657,2]
[316666125,1709579446098,-500.0,0.00024657,2]
[316666126,1709579446107,-354.43353727,0.00024657,2]
[316666127,1709579446116,-500.0,0.00024657,2]
[316666128,1709579446125,-500.0,0.00024657,2]
[316666129,1709579446134,-500.0,0.00024657,2]
[316666130,1709579446143,-500.0,0.00024657,2]
[316666131,1709579446152,-500.0,0.00024657,2]
[316666132,1709579446161,-500.0,0.00024657,2]
[316666133,1709579446171,-500.0,0.00024657,2]
[316666134,1709579446180,-500.0,0.00024657,2]
[316666135,1709579446190,-500.0,0.00024657,2]
[316666136,1709579446201,-500.0,0.00024657,2]
[316666137,1709579446212,-500.0,0.00024657,2]
[316666138,1709579446224,-263.03573624,0.00024657,2]
[316666139,1709579446233,-500.0,0.00024657,2]
[316666140,1709579446243,-500.0,0.00024657,2]
[316666141,1709579446253,-500.0,0.00024657,2]
[316666142,1709579446263,-253.29964775,0.00024657,2]
[316666143,1709579446272,-500.0,0.00024657,2]
[316666144,1709579446282,-500.46031328,0.00024657,2]
[316666145,1709579446291,-500.0,0.00024657,2]
[316666146,1709579446301,-500.0,0.00024657,2]
[316666147,1709579446311,-500.0,0.00024657,2]
[316666148,1709579446320,-500.0,0.00024657,2]
[316666149,1709579446329,-500.0,0.00024657,2]
[316666150,1709579446339,-500.0,0.00024657,2]
[316666151,1709579446348,-500.0,0.00024657,2]
[316666152,1709579446357,-500.0,0.00024657,2]
[316666153,1709579446369,-500.0,0.00024657,2]
[316666154,1709579446378,-516.24659508,0.00024657,2]
[316666155,1709579446388,-500.0,0.00024657,2]
[316666156,1709579446397,-500.0,0.00024657,2]
[316666157,1709579446408,-500.0,0.00024657,2]
[316666158,1709579446417,-500.0,0.00024657,2]
[316666159,1709579446426,-375.64072038,0.00024657,2]
[316666160,1709579446435,-151.0,0.00024657,2]
[316666161,1709579446445,-151.0,0.00024657,2]
[316666162,1709579446456,-151.0,0.00024657,2]
[316666163,1709579446468,-151.0,0.00024657,2]
[316666164,1709579446477,-192.916889,0.00024657,2]
[316666165,1709579446486,-500.0,0.00024657,2]
[316666166,1709579446496,-500.0,0.00024657,2]
[316666167,1709579446505,-585.14033652,0.00024657,2]
[316666168,1709579446515,-500.0,0.00024657,2]
[316666169,1709579446524,-500.0,0.00024657,2]
[316666170,1709579446533,-500.0,0.00024657,2]